bitfinex/quotes_ETHUSD_20241009
["timestamp","ask_amount","ask_price","bid_price","bid_amount"]
[1728446469481,4.19814,2446.1,2445.9,0.8406]
[1728446472675,0.11,2446.1,2445.9,0.8406]
[1728446473178,0.11,2446.1,2446.0,1.76336753]
[1728446473709,0.11,2446.1,2446.0,6.43684928]
[1728446474014,0.11,2446.1,2446.0,2.34854928]
[1728446475018,0.11,2446.1,2446.0,1.76336753]
[1728446476111,0.11,2446.3,2446.0,1.76336753]
[1728446476914,0.11,2446.3,2446.1,0.8575]
[1728446477683,4.19782,2446.3,2446.1,0.8575]
[1728446478084,4.08797,2446.2,2446.1,0.8575]
[1728446479191,4.19782,2446.3,2446.1,0.8575]
[1728446479389,0.11,2446.3,2446.1,0.8575]
[1728446481512,4.19791,2446.3,2446.1,0.8575]
[1728446482008,0.11,2446.2,2446.1,0.8575]
[1728446487892,4.0878,2446.3,2446.1,0.8575]
[1728446489514,1.38701449,2446.4,2446.1,0.8575]
[1728446489515,0.11,2446.4,2446.1,0.8575]
[1728446489714,0.11,2446.4,2446.1,1.44283475]
[1728446490294,1.38701449,2446.4,2446.1,1.44283475]
[1728446491425,0.11,2446.4,2446.1,1.44283475]
[1728446492322,4.19765,2446.4,2446.1,1.44283475]
[1728446492530,4.19765,2446.4,2446.1,0.8575]
[1728446493328,4.08791,2446.3,2446.1,0.8575]
[1728446493890,0.11,2446.2,2446.1,0.8575]
[1728446494288,0.11,2446.2,2446.0,0.90746753]
[1728446494498,4.08814,2446.1,2446.0,0.90746753]
[1728446495841,5.36515449,2446.1,2446.0,0.90746753]
[1728446497310,1.27701449,2446.1,2446.0,0.90746753]
[1728446497516,5.47499449,2446.2,2446.0,0.90746753]
[1728446498323,4.08814,2446.1,2446.0,0.90746753]
[1728446498841,5.36515449,2446.1,2446.0,0.90746753]
[1728446499911,5.47515449,2446.1,2446.0,0.90746753]
[1728446500629,1.38701449,2446.1,2446.0,0.90746753]
[1728446501237,6.00715449,2446.1,2446.0,0.90746753]
[1728446501620,4.19814,2446.1,2446.0,0.90746753]
[1728446501933,5.48389216,2446.1,2446.0,0.90746753]
[1728446502637,6.34059699,2446.1,2446.0,0.90746753]
[1728446502811,7.42335788,2446.1,2446.0,0.90746753]
[1728446503145,8.28014,2446.1,2446.0,0.90746753]
[1728446503331,10.85200145,2446.1,2446.0,0.90746753]
[1728446503533,10.85194983,2446.1,2446.0,0.90746753]
[1728446504123,8.28014,2446.1,2446.0,0.90746753]
[1728446505625,8.17014,2446.1,2446.0,0.79746753]
[1728446507917,11.76853944,2446.1,2446.0,0.79746753]
[1728446509153,11.16854414,2446.1,2446.0,0.79746753]
[1728446509448,8.17014,2446.1,2446.0,0.79746753]
[1728446510258,10.94558315,2446.1,2446.0,0.79746753]
[1728446510637,8.37690336,2446.1,2446.0,0.79746753]
[1728446512854,4.62014,2446.1,2446.0,0.79746753]
[1728446513062,6.22780993,2446.1,2446.0,0.79746753]
[1728446514059,4.63814,2446.1,2446.0,0.79746753]
[1728446514259,7.63814,2446.1,2446.0,0.79746753]
[1728446515153,8.17014,2446.1,2446.0,0.79746753]
[1728446521816,10.73689987,2446.1,2446.0,0.79746753]
[1728446523973,8.17014,2446.1,2446.0,0.79746753]
[1728446524866,7.63814,2446.1,2446.0,0.79746753]
[1728446525039,9.77620552,2446.1,2446.0,0.79746753]
[1728446525448,7.63814,2446.1,2446.0,0.79746753]
[1728446527268,7.08814,2446.1,2446.0,0.79746753]
[1728446527575,8.79877683,2446.1,2446.0,0.79746753]
[1728446527925,7.08814,2446.1,2446.0,0.79746753]
[1728446528425,7.08814,2446.1,2446.0,1.63036753]
[1728446528657,7.63814,2446.1,2446.0,1.63036753]
[1728446528963,8.37125598,2446.1,2446.0,1.63036753]
[1728446529325,8.37131353,2446.1,2446.0,1.63036753]
[1728446529528,7.08814,2446.1,2446.0,1.63036753]
[1728446530831,8.79877683,2446.1,2446.0,1.63036753]
[1728446531027,7.08814,2446.1,2446.0,1.63036753]
[1728446531364,8.79877683,2446.1,2446.0,1.63036753]
[1728446532133,9.77727031,2446.1,2446.0,0.79746753]
[1728446532763,7.63814,2446.1,2446.0,0.79746753]
[1728446538276,10.20732071,2446.1,2446.0,0.79746753]
[1728446538466,7.63814,2446.1,2446.0,0.79746753]
[1728446539981,7.63814,2446.1,2446.0,1.65926753]
[1728446539982,6.23100482,2446.1,2446.0,1.65926753]
[1728446540281,5.80268369,2446.1,2446.0,1.65926753]
[1728446540980,5.37392298,2446.1,2446.0,1.65926753]
[1728446541192,4.08814,2446.1,2446.0,1.65926753]
[1728446541355,5.37392298,2446.1,2446.0,1.65926753]
[1728446541751,4.08814,2446.1,2446.0,1.65926753]
[1728446543245,5.76384556,2446.1,2446.0,1.65926753]
[1728446544389,5.76384556,2446.1,2444.9,0.20809018]
[1728446544390,18.17,2445.1,2444.4,2.57011709]
[1728446544584,7.64081,2444.5,2444.4,0.20198855]
[1728446544770,6.35541016,2444.5,2444.4,0.20198855]
[1728446544976,6.35541016,2444.5,2444.1,0.8348]
[1728446544977,4.09098,2444.4,2444.1,2.85281001]
[1728446545172,4.09098,2444.4,2444.1,0.8348]
[1728446545356,4.64081,2444.5,2444.1,0.8348]
[1728446545357,5.92675877,2444.5,2444.1,0.8348]
[1728446545561,1.28594877,2444.5,2444.1,0.8348]
[1728446545756,0.38243255,2444.4,2444.1,0.8348]
[1728446547466,5.37673877,2444.6,2444.1,0.8348]
[1728446547910,0.3820116,2444.4,2444.1,0.8348]
[1728446548268,0.76403341,2444.4,2444.1,0.8348]
[1728446548677,4.85501341,2444.4,2444.1,0.8348]
[1728446549904,4.47300181,2444.4,2444.1,0.8348]
[1728446550850,4.09098,2444.4,2444.1,0.8348]
[1728446551307,4.47242582,2444.4,2444.1,0.8348]
[1728446554108,4.09098,2444.4,2444.1,0.8348]
[1728446554502,4.47196418,2444.4,2444.1,0.8348]
[1728446555519,4.47196418,2444.4,2443.8,0.8526]
[1728446558324,4.47146652,2444.4,2443.8,0.8526]
[1728446559107,4.09098,2444.4,2444.3,1.01236619]
[1728446559812,4.47141272,2444.4,2444.3,1.01236619]
[1728446560349,4.09098,2444.4,2444.3,1.01236619]
[1728446561148,4.09098,2444.4,2444.3,1.87916619]
[1728446561367,8.28705,2443.7,2443.6,0.00080409]
[1728446561651,4.64316,2443.1,2443.0,1.09253247]
[1728446561959,11.40652546,2443.1,2443.0,1.09253247]
[1728446562143,12.68361545,2443.1,2443.0,1.09253247]
[1728446562325,12.43169004,2443.1,2443.0,1.09253247]
[1728446562517,13.70878003,2443.1,2443.0,1.09253247]
[1728446563355,12.43169004,2443.1,2443.0,1.09253247]
[1728446564147,12.05142546,2443.1,2443.0,1.09253247]
[1728446568873,7.64316,2443.1,2443.0,1.09253247]
[1728446576233,4.73629,2444.2,2443.1,0.8421]
[1728446576435,4.09226,2443.7,2443.1,4.60546546]
[1728446576639,4.09203,2443.8,2443.2,5.07210679]
[1728446576951,4.09185,2443.9,2443.2,5.07201679]
[1728446577162,4.09185,2443.9,2443.2,9.16487679]
[1728446577353,8.18378,2443.9,2443.3,1.00069768]
[1728446577537,8.18378,2443.9,2443.2,4.09286]
[1728446578037,4.092,2443.8,2443.2,4.09286]
[1728446580639,4.64209,2443.8,2443.3,0.8338]
[1728446581381,0.55,2443.8,2443.3,1.70280255]
[1728446581876,4.642,2443.8,2443.3,1.70280255]
[1728446582043,0.55,2443.8,2443.3,5.79555255]
[1728446582369,0.55,2443.8,2443.3,1.70280255]
[1728446582572,4.642,2443.8,2443.3,1.70280255]
[1728446585147,4.09216,2443.7,2443.3,1.70280255]
[1728446586155,0.55,2443.8,2443.3,1.70280255]
[1728446586541,4.64199,2443.8,2443.3,1.70280255]
[1728446589307,0.55,2443.8,2443.3,0.8338]
[1728446589519,4.09258,2443.5,2443.3,0.8338]
[1728446589802,8.18519,2443.5,2443.3,0.8338]
[1728446590000,4.09258,2443.5,2443.3,0.8338]
[1728446590239,0.38028085,2443.4,2443.3,0.8338]
[1728446590668,4.47293085,2443.4,2443.3,0.8338]
[1728446592187,4.47293085,2443.4,2443.0,1.95913247]
[1728446592510,4.09277,2443.4,2443.0,1.95913247]
[1728446593073,4.09258,2443.5,2443.0,1.95913247]
[1728446593315,0.38036301,2443.4,2443.0,1.95913247]
[1728446593510,4.09258,2443.5,2443.0,2.97374572]
[1728446593671,0.38043174,2443.4,2443.0,2.97374572]
[1728446593879,4.09268,2443.4,2443.0,2.97374572]
[1728446594488,4.09258,2443.5,2443.0,2.97374572]
[1728446594695,0.3805005,2443.4,2443.0,2.97374572]
[1728446595003,4.09258,2443.5,2443.0,2.97374572]
[1728446595308,0.38053648,2443.4,2443.0,2.97374572]
[1728446595505,4.09258,2443.5,2443.0,2.97374572]
[1728446595810,0.38051588,2443.4,2443.0,2.97374572]
[1728446596017,4.09258,2443.5,2443.0,7.06705572]
[1728446596201,0.38056903,2443.4,2443.0,7.06705572]
[1728446596404,4.09258,2443.5,2443.0,7.06705572]
[1728446596585,0.38056653,2443.4,2443.0,7.06705572]
[1728446596788,4.09258,2443.5,2443.0,7.06705572]
[1728446597101,0.3805667,2443.4,2443.0,7.06705572]
[1728446597301,4.09258,2443.5,2443.0,7.06705572]
[1728446597507,0.38063106,2443.4,2443.0,7.06705572]
[1728446597815,4.09258,2443.5,2443.0,2.97374572]
[1728446598037,0.38061288,2443.4,2443.0,2.97374572]
[1728446598326,4.09258,2443.5,2443.0,2.97374572]
[1728446598482,0.38068643,2443.4,2443.0,2.97374572]
[1728446598683,4.09258,2443.5,2443.0,2.97374572]
[1728446598996,0.38068247,2443.4,2443.0,2.97374572]
[1728446599194,4.09258,2443.5,2443.0,7.06704572]
[1728446599393,0.38074864,2443.4,2443.0,7.06704572]
[1728446599719,4.09249,2443.5,2443.0,7.06704572]
[1728446599904,0.38072704,2443.4,2443.0,7.06704572]
[1728446600082,4.09249,2443.5,2443.0,7.06704572]
[1728446600288,0.38078276,2443.4,2443.0,7.06704572]
[1728446600586,8.18507,2443.5,2443.0,7.06704572]
[1728446600925,0.38076657,2443.4,2443.0,7.06704572]
[1728446601095,4.09249,2443.5,2443.0,7.06704572]
[1728446601301,0.3808309,2443.4,2443.0,7.06704572]
[1728446601611,4.09249,2443.5,2443.0,7.06704572]
[1728446601919,0.38083826,2443.4,2443.0,7.06704572]
[1728446602119,4.09249,2443.5,2443.0,7.06704572]
[1728446602288,0.38094504,2443.4,2443.1,0.9384]
[1728446602488,4.09249,2443.5,2443.1,0.9384]
[1728446602687,0.38092716,2443.4,2443.1,0.9384]
[1728446602992,4.09249,2443.5,2443.1,0.9384]
[1728446603198,0.37930371,2443.4,2443.1,5.74542457]
[1728446603397,4.09198,2443.8,2443.3,5.02832]
[1728446603637,1.27708999,2444.2,2443.3,5.02832]
[1728446603858,4.09191,2443.9,2443.4,0.87916855]
[1728446604375,4.09191,2443.9,2443.5,0.8737]
[1728446604934,4.09156,2444.1,2443.5,0.8737]
[1728446605241,4.09156,2444.1,2443.7,0.8737]
[1728446605955,4.09122,2444.3,2443.7,0.8737]
[1728446606159,8.18251,2444.3,2443.7,4.96583]
[1728446606483,8.18247,2444.3,2443.7,4.09206]
[1728446606635,8.18247,2444.3,2443.8,1.34136059]
[1728446606636,4.09122,2444.3,2443.8,1.34136059]
[1728446606833,4.09122,2444.3,2443.8,5.43333059]
[1728446607032,4.09122,2444.3,2443.8,1.34136059]
[1728446607429,4.09089,2444.5,2443.9,0.8737]
[1728446607731,4.09116,2444.3,2443.9,1.79337861]
[1728446610550,4.09089,2444.5,2443.9,5.88518861]
[1728446610776,5.36773999,2444.6,2444.0,0.8737]
[1728446611007,4.09065,2444.6,2444.1,0.8737]
[1728446611187,4.09065,2444.6,2444.1,1.87136086]
[1728446611772,4.09082,2444.5,2444.1,1.87136086]
[1728446612156,4.09082,2444.5,2444.1,0.8737]
[1728446612939,5.36764999,2444.7,2444.2,0.8652]
[1728446613376,4.09056,2444.7,2444.2,0.8652]
[1728446613748,8.18115,2444.7,2444.2,0.8652]
[1728446613948,4.09056,2444.7,2444.2,4.95649]
[1728446614172,1.27708999,2445.0,2444.4,0.8652]
[1728446614360,8.79265665,2445.1,2444.3,4.995925]
[1728446614361,5.36695999,2445.1,2444.5,0.8652]
[1728446614567,4.08987,2445.1,2444.5,4.95589]
[1728446614761,4.09002,2445.0,2444.5,5.9510625]
[1728446615295,0.38161957,2444.9,2444.5,5.9510625]
[1728446615585,0.38161957,2444.8,2444.5,5.9510625]
[1728446615783,0.38161957,2444.7,2444.5,5.9510625]
[1728446616090,4.08987,2445.1,2444.5,5.9510625]
[1728446616290,4.47145084,2445.0,2444.6,0.59510625]
[1728446616498,0.38147027,2444.9,2444.7,0.8652]
[1728446617066,0.38147027,2444.8,2444.7,0.8652]
[1728446617695,11.51954,2445.3,2444.7,0.8652]
[1728446617696,4.08975,2445.2,2444.7,0.8652]
[1728446617872,0.3813683,2445.1,2444.7,1.92887188]
[1728446618079,0.3813683,2445.0,2444.7,1.92887188]
[1728446618377,0.3813683,2444.9,2444.7,1.92887188]
[1728446618584,4.08975,2445.2,2444.7,1.92887188]
[1728446618802,4.47103922,2445.1,2444.7,0.8652]
[1728446618954,4.09016,2444.9,2444.7,0.8652]
[1728446619295,0.38120922,2444.8,2444.7,0.8652]
[1728446619854,4.09,2445.0,2444.7,0.8652]
[1728446620090,0.38121546,2444.9,2444.7,0.8652]
[1728446620288,4.09,2445.0,2444.7,0.8652]
[1728446620451,0.38111263,2444.9,2444.7,0.8652]
[1728446620652,4.09,2445.0,2444.7,0.8652]
[1728446620857,4.08983,2445.1,2444.7,0.8652]
[1728446620858,0.38111513,2444.9,2444.7,0.8652]
[1728446621086,8.17976,2445.1,2444.7,0.8652]
[1728446621361,0.38102281,2445.0,2444.7,0.8652]
[1728446621580,4.08983,2445.1,2444.7,0.8652]
[1728446621767,0.38103955,2445.0,2444.7,0.8652]
[1728446622212,0.38103955,2445.0,2444.7,4.95567]
[1728446622387,4.08992,2445.1,2444.7,2.14617355]
[1728446622603,4.08992,2445.1,2444.7,0.8652]
[1728446622604,4.09015,2444.9,2444.7,0.8652]
[1728446623395,4.09001,2445.0,2444.7,0.8652]
[1728446624099,0.380891,2444.9,2444.7,0.8652]
[1728446624303,4.09001,2445.0,2444.7,0.8652]
[1728446626102,4.08988,2445.1,2444.7,0.8652]
[1728446626262,4.08956,2445.3,2444.7,1.360799]
[1728446626460,4.47046913,2445.2,2444.7,1.360799]
[1728446626765,0.38073913,2445.1,2444.7,1.360799]
[1728446626963,0.38073913,2445.1,2444.9,4.09009]
[1728446627270,0.38073913,2445.1,2444.9,8.18018]
[1728446627578,7.08922,2445.5,2445.1,0.8628]
[1728446628464,11.1785,2445.5,2445.1,0.8628]
[1728446628912,4.08889,2445.7,2445.1,0.8628]
[1728446629114,4.08916,2445.5,2445.1,0.8628]
[1728446630092,4.08916,2445.5,2445.1,1.42237074]
[1728446633408,8.17846,2445.5,2445.1,1.42237074]
[1728446633697,8.17846,2445.5,2445.1,0.8628]
[1728446633991,4.08916,2445.5,2445.1,0.8628]
[1728446635606,8.1784,2445.5,2445.1,0.8628]
[1728446635784,4.08916,2445.5,2445.1,0.8628]
[1728446635990,8.1784,2445.5,2445.1,0.8628]
[1728446636771,4.08916,2445.5,2445.1,0.8628]
[1728446637018,4.08933,2445.4,2445.1,0.8628]
[1728446637228,4.08916,2445.5,2445.1,0.8628]
[1728446637537,8.17846,2445.5,2445.1,0.8628]
[1728446638386,4.08916,2445.5,2445.1,0.8628]
[1728446638575,8.17842,2445.5,2445.1,0.8628]
[1728446638771,8.1784,2445.5,2445.1,0.8628]
[1728446639812,4.08916,2445.5,2445.1,0.8628]
[1728446640013,8.17845,2445.5,2445.1,0.8628]
[1728446640204,4.08916,2445.5,2445.1,0.8628]
[1728446640400,4.08964,2445.2,2445.1,0.8628]
[1728446640607,4.08991,2445.1,2444.6,0.9194]
[1728446640779,4.08991,2445.1,2444.6,5.511051]
[1728446641815,4.08991,2445.1,2444.6,1.420411]
[1728446642181,4.0904,2444.8,2444.6,0.9194]
[1728446642404,4.09015,2444.9,2444.6,0.9194]
[1728446642720,8.18039,2444.9,2444.6,0.9194]
[1728446643397,4.09031,2444.8,2444.6,0.9194]
[1728446643782,4.09048,2444.7,2444.6,0.9194]
[1728446644501,4.09048,2444.7,2444.2,0.919]
[1728446644702,4.09081,2444.5,2444.2,0.919]
[1728446645125,4.09048,2444.7,2444.2,1.420061]
[1728446645425,4.09048,2444.7,2444.2,5.511321]
[1728446646425,4.09048,2444.7,2444.2,1.420061]
[1728446646582,8.1811,2444.7,2444.2,1.420061]
[1728446646781,4.09048,2444.7,2444.2,1.420061]
[1728446647596,4.09048,2444.7,2444.3,0.5511441]
[1728446651819,4.09023,2444.9,2444.4,0.9351]
[1728446652784,8.17987,2445.1,2444.4,5.02607]
[1728446652994,4.08991,2445.1,2444.5,0.8695]
[1728446653495,4.09007,2445.0,2444.5,0.8695]
[1728446653706,4.09007,2445.0,2444.5,1.82976641]
[1728446654896,8.17983,2445.1,2444.5,5.92056641]
[1728446655128,4.08991,2445.1,2444.5,5.92056641]
[1728446656130,8.17981,2445.1,2444.5,5.92056641]
[1728446657186,8.17981,2445.1,2444.6,0.9187]
[1728446657384,4.0899,2445.1,2444.6,1.97896319]
[1728446657586,4.0899,2445.1,2444.7,0.8602]
[1728446658986,8.17983,2445.1,2444.7,0.8602]
[1728446659192,9.45691999,2445.1,2444.7,0.8602]
[1728446659830,5.36698999,2445.1,2444.7,1.46131732]
[1728446661045,9.45689999,2445.1,2444.7,1.46131732]
[1728446662327,5.36698999,2445.1,2444.7,1.46131732]
[1728446662525,4.0899,2445.1,2444.7,1.46131732]
[1728446663041,5.36698999,2445.1,2444.7,1.46131732]
[1728446664157,4.0899,2445.1,2444.7,1.46131732]
[1728446664356,5.36698999,2445.1,2444.7,1.46131732]
[1728446666278,4.0899,2445.1,2444.7,1.46131732]
[1728446666479,9.45688999,2445.1,2444.7,1.46131732]
[1728446667272,5.36698999,2445.1,2444.7,1.46131732]
[1728446667480,4.0899,2445.1,2444.7,1.46131732]
[1728446667854,4.0899,2445.1,2444.8,0.55519473]
[1728446668046,4.0899,2445.1,2444.7,1.46131732]
[1728446670258,4.0899,2445.1,2444.7,0.8602]
[1728446670589,8.17985,2445.1,2444.7,0.8602]
[1728446671251,4.0899,2445.1,2444.7,0.8602]
[1728446672951,4.0899,2445.1,2444.7,2.59705928]
[1728446674449,8.17981,2445.1,2444.7,2.59705928]
[1728446674653,8.17981,2445.1,2444.7,1.52897593]
[1728446675755,4.0899,2445.1,2444.7,1.52897593]
[1728446676170,8.17983,2445.1,2444.7,1.52897593]
[1728446676375,4.0899,2445.1,2444.7,1.52897593]
[1728446677569,8.1798,2445.1,2444.7,1.52897593]
[1728446677898,4.0899,2445.1,2444.7,1.52897593]
[1728446678252,4.0899,2445.1,2444.8,0.56195859]
[1728446683420,5.36698999,2445.1,2444.8,0.56195859]
[1728446684044,4.0899,2445.1,2444.8,0.56195859]
[1728446684407,5.36698999,2445.1,2444.8,0.56195859]
[1728446684740,4.0899,2445.1,2444.8,0.56195859]
[1728446684940,5.36698999,2445.1,2444.8,0.56195859]
[1728446685105,4.0899,2445.1,2444.8,0.56195859]
[1728446685310,5.36698999,2445.1,2444.8,0.56195859]
[1728446686509,4.0899,2445.1,2444.8,1.56195859]
[1728446688330,4.0899,2445.1,2444.8,1.0]
[1728446688848,1.27708999,2445.1,2444.8,1.0]
[1728446689011,1.27708999,2445.2,2444.8,1.0]
[1728446689214,5.36673999,2445.2,2444.8,1.0]
[1728446689430,5.36673999,2445.2,2444.8,1.66193459]
[1728446690733,5.36689999,2445.1,2444.8,1.66193459]
[1728446690933,5.36689999,2445.1,2444.8,1.0]
[1728446691446,4.08981,2445.1,2444.8,1.0]
[1728446691833,5.36689999,2445.1,2444.8,1.0]
[1728446692152,0.55,2444.6,2443.0,7.76089645]
[1728446692370,4.09218,2443.7,2443.1,0.9135]
[1728446692653,4.09218,2443.7,2443.1,5.00655]
[1728446692959,5.37291022,2443.9,2443.1,5.00655]
[1728446693110,4.09201,2443.8,2443.1,5.00655]
[1728446693310,4.09188,2443.9,2443.3,0.916]
[1728446693548,5.37260022,2444.1,2443.3,6.74552928]
[1728446693771,4.09157,2444.1,2443.4,0.916]
[1728446694730,1.7080403,2444.4,2443.9,1.73685928]
[1728446694731,4.09103,2444.4,2443.9,1.73685928]
[1728446694922,4.09103,2444.4,2444.2,0.9]
[1728446695655,4.09069,2444.6,2444.2,0.9]
[1728446696247,4.09086,2444.5,2444.2,0.9]
[1728446696448,4.09069,2444.6,2444.2,0.9]
[1728446696618,4.0909,2444.5,2444.2,0.9]
[1728446698464,8.18145,2444.6,2444.2,0.9]
[1728446698770,4.09069,2444.6,2444.3,0.46644939]
[1728446699267,4.09094,2444.5,2444.3,0.46644939]
[1728446699560,4.09094,2444.5,2444.2,0.9]
[1728446700733,4.09069,2444.6,2444.2,0.9]
[1728446701921,4.09038,2444.8,2444.2,0.9]
[1728446702122,1.28103022,2445.1,2444.5,3.7644939]
[1728446702325,5.7977503,2445.2,2444.5,3.7644939]
[1728446702326,5.37074022,2445.2,2444.6,1.67193339]
[1728446702571,4.08971,2445.2,2444.6,1.67193339]
[1728446703172,4.08971,2445.2,2444.6,5.76250339]
[1728446703369,4.08971,2445.2,2444.7,7.8549639]
[1728446703538,4.08971,2445.2,2444.8,1.73004973]
[1728446704035,5.37044022,2445.4,2444.8,1.73004973]
[1728446704728,4.08958,2445.3,2444.8,1.73004973]
[1728446704926,5.37044022,2445.4,2444.8,5.82033973]
[1728446705125,1.7080403,2445.5,2444.9,7.8546239]
[1728446705126,1.28103022,2445.5,2444.9,7.8546239]
[1728446705326,5.37009022,2445.6,2445.1,0.9079]
[1728446705632,1.7080403,2445.7,2443.7,0.4096]
[1728446705633,18.17,2443.8,2443.7,0.4096]
[1728446705830,27.4722749,2443.8,2442.4,4.9541035]
[1728446706042,12.61366199,2444.1,2442.2,0.64106875]
[1728446706043,4.09333,2443.0,2442.2,0.64106875]
[1728446706244,0.38052235,2442.9,2442.6,1.97577032]
[1728446706685,0.85235643,2443.1,2442.6,1.97577032]
[1728446706970,0.85235643,2443.0,2442.6,1.97577032]
[1728446707169,1.55625393,2443.0,2442.6,1.97577032]
[1728446707332,0.85235643,2443.1,2442.6,1.97577032]
[1728446707670,0.38005927,2442.8,2442.6,1.97577032]
[1728446707963,4.94551643,2443.1,2442.6,1.97577032]
[1728446708168,0.85235643,2443.2,2442.6,1.97577032]
[1728446708474,0.85235643,2443.3,2442.6,1.97577032]
[1728446708632,6.70189831,2443.3,2442.7,0.60699203]
[1728446708966,4.94526643,2443.3,2442.6,1.97577032]
[1728446709173,4.09291,2443.3,2442.6,1.97577032]
[1728446709534,4.09299,2443.2,2442.6,1.97577032]
[1728446711668,4.09299,2443.2,2442.6,36.97577032]
[1728446711869,4.09299,2443.2,2442.7,4.09492025]
[1728446712586,4.09265,2443.4,2442.6,5.74026422]
[1728446712587,4.09265,2443.4,2442.6,9.83423422]
[1728446712787,4.09265,2443.4,2442.6,9.83415422]
[1728446712974,4.09265,2443.4,2442.7,39.09381]
[1728446715559,4.09265,2443.4,2442.8,4.09364]
[1728446716297,4.09285,2443.3,2442.9,35.0]
[1728446716605,4.09285,2443.3,2442.9,38.5]
[1728446716902,4.09265,2443.4,2442.9,38.5]
[1728446717271,8.18546,2443.4,2442.9,38.5]
[1728446718307,4.09265,2443.4,2442.9,38.5]
[1728446719349,8.18545,2443.4,2442.9,3.5]
[1728446719596,8.18545,2443.4,2442.7,4.09379]
[1728446719886,4.09265,2443.4,2442.8,35.0]
[1728446720075,4.09265,2443.4,2442.8,39.09362]
[1728446721896,8.18546,2443.4,2442.8,39.09362]
[1728446722062,4.09265,2443.4,2442.8,39.09362]
[1728446723284,4.09265,2443.4,2442.8,4.09362]
[1728446723505,4.09265,2443.4,2442.9,0.409362]
[1728446723808,4.09265,2443.4,2442.9,35.409362]
[1728446725809,4.09265,2443.4,2442.9,39.502812]
[1728446726775,4.0924,2443.6,2442.9,39.502812]
[1728446727112,4.09174,2444.0,2443.3,4.09281]
[1728446727312,4.09174,2444.0,2443.4,7.8570139]
[1728446727699,4.09174,2444.0,2443.4,42.8570139]
[1728446727877,4.09174,2444.0,2443.3,4.09281]
[1728446728078,4.09174,2444.0,2443.4,4.09251]
[1728446728279,0.7394,2444.1,2443.5,4.09247]
[1728446728589,4.09131,2444.3,2443.7,4.09215]
[1728446728590,4.09127,2444.3,2443.7,4.09215]
[1728446729101,4.09127,2444.3,2443.7,4.09205]
[1728446729303,4.09127,2444.3,2443.7,9.096634]
[1728446729507,4.09127,2444.3,2443.7,5.004584]
[1728446729811,4.09127,2444.3,2443.8,4.09194]
[1728446730022,4.09127,2444.3,2443.7,5.004574]
[1728446730377,4.09089,2444.5,2443.9,4.0918]
[1728446730687,4.09089,2444.5,2443.9,5.0014374]
[1728446731246,4.94290643,2444.7,2444.0,4.0916]
[1728446731420,0.70170244,2444.6,2444.1,5.04056]
[1728446731626,4.09055,2444.7,2444.1,5.04056]
[1728446731778,4.09066,2444.6,2444.1,5.04056]
[1728446732174,0.0959619,2444.5,2444.1,5.04056]
[1728446732476,0.0959619,2444.5,2444.1,6.04475974]
[1728446733622,4.09022,2444.9,2444.4,4.09097]
[1728446733623,4.94257643,2444.9,2444.4,4.09097]
[1728446733817,0.09244911,2444.4,2444.3,4.09111]
[1728446734003,4.09022,2444.9,2444.3,5.48114036]
[1728446734203,0.09235885,2444.4,2444.3,5.48114036]
[1728446734392,4.09022,2444.9,2444.3,5.48114036]
[1728446734577,0.09240609,2444.4,2444.3,9.57219036]
[1728446735005,4.09022,2444.9,2444.3,9.57219036]
[1728446735205,0.09248297,2444.4,2444.3,9.57219036]
[1728446735404,4.09022,2444.9,2444.3,9.57219036]
[1728446735607,4.09022,2444.9,2444.4,1.33366843]
[1728446736025,4.08999,2445.0,2444.4,5.42462843]
[1728446736229,0.37934869,2444.9,2444.4,5.42462843]
[1728446736534,4.94234643,2445.0,2444.4,5.42462843]
[1728446736735,0.37934082,2444.9,2444.5,4.09078]
[1728446737042,4.08998,2445.0,2444.4,1.33366843]
[1728446737264,4.08998,2445.0,2444.4,5.42454843]
[1728446737422,4.94222643,2445.1,2444.6,0.8691]
[1728446737613,4.08987,2445.1,2444.6,4.95974]
[1728446738720,0.85235643,2445.2,2444.6,0.8691]
[1728446738926,0.37932427,2445.1,2444.7,4.09046]
[1728446739116,4.94190643,2445.3,2444.8,0.495956]
[1728446739309,1.08181766,2445.2,2444.7,4.09046]
[1728446739524,4.94190643,2445.3,2444.7,4.09046]
[1728446739846,4.94190643,2445.3,2444.6,0.8691]
[1728446739847,1.08175459,2445.2,2444.6,0.8691]
[1728446740052,4.08974,2445.2,2444.6,4.95974]
[1728446740359,4.08955,2445.3,2444.7,4.09046]
[1728446740520,4.08955,2445.3,2444.7,8.18538025]
[1728446741046,4.08955,2445.3,2444.8,4.09025]
[1728446741267,4.94159643,2445.5,2444.7,8.18530025]
[1728446741409,4.08924,2445.5,2444.9,4.09012]
[1728446741615,4.08924,2445.5,2444.9,5.31766203]
[1728446741851,8.17849,2445.5,2444.9,5.31766203]
[1728446742027,4.08932,2445.4,2444.9,5.31766203]
[1728446742348,4.08932,2445.4,2444.9,1.22754203]
[1728446742567,4.08924,2445.5,2444.9,1.22754203]
[1728446742568,4.0895,2445.3,2444.9,1.22754203]
[1728446744263,4.08924,2445.5,2444.9,5.31757203]
[1728446744470,4.08924,2445.5,2445.0,1.3835]
[1728446744670,4.08909,2445.6,2445.0,5.47338]
[1728446745631,4.08914,2445.5,2445.0,1.3835]
[1728446746451,2.23025643,2445.8,2445.0,1.3835]
[1728446746666,4.08923,2445.5,2445.0,1.3835]
[1728446746829,4.08923,2445.5,2445.0,1.930853]
[1728446748074,0.08671614,2445.4,2445.0,1.930853]
[1728446749557,0.08671614,2445.4,2445.0,6.020813]
[1728446750047,0.08671614,2445.4,2445.0,1.930853]
[1728446750252,0.08671614,2445.4,2445.1,4.08978]
[1728446750448,8.1778,2445.7,2445.1,5.1008463]
[1728446750668,0.08661232,2445.3,2445.1,5.1008463]
[1728446750965,0.08650849,2445.2,2445.1,5.1008463]
[1728446751169,4.0889,2445.7,2445.1,4.08978]
[1728446751341,0.08654443,2445.2,2445.1,4.08978]
[1728446751540,4.0887,2445.8,2445.2,4.08952]
[1728446752040,4.08881,2445.7,2445.1,4.08978]
[1728446752355,4.08881,2445.7,2445.2,4.6916733]